[Event "*** Titled Tuesday Blitz"]
[Site "Chess.com"]
[Date "2020.12.29"]
[Round "2"]
[White "Chamal_Gedgafov"]
[Black "freshfoodcompany"]
[Result "1-0"]
[WhiteElo "2207"]
[BlackElo "2401"]
[TimeControl "180+1"]
[EndTime "10:16:33 PST"]
[Termination "Chamal_Gedgafov won by checkmate"]

1. e4 {[%clk 0:03:00.9]} 1... c6 {[%clk 0:03:00.3]} 2. d4 {[%clk 0:02:59.5]}
2... d5 {[%clk 0:03:00.6]} 3. f3 {[%clk 0:02:59.4]} 3... dxe4 {[%clk 0:03:00.2]}
4. fxe4 {[%clk 0:02:58.6]} 4... e5 {[%clk 0:03:00.7]} 5. Nf3 {[%clk 0:02:58.2]}
5... Bg4 {[%clk 0:03:01.1]} 6. Bc4 {[%clk 0:02:54.5]} 6... Nd7 {[%clk
0:03:00.4]} 7. c3 {[%clk 0:02:52.9]} 7... Bd6 {[%clk 0:02:55.7]} 8. Qb3 {[%clk
0:02:38.1]} 8... Qe7 {[%clk 0:02:54.5]} 9. Ng5 {[%clk 0:02:33.8]} 9... Nh6
{[%clk 0:02:52]} 10. O-O {[%clk 0:02:31.3]} 10... O-O {[%clk 0:02:47.7]} 11.
Qxb7 {[%clk 0:02:28.7]} 11... Rfb8 {[%clk 0:02:42]} 12. Qxc6 {[%clk 0:02:06.5]}
12... Rc8 {[%clk 0:02:38.3]} 13. Qa6 {[%clk 0:02:05.6]} 13... exd4 {[%clk
0:02:27.4]} 14. cxd4 {[%clk 0:02:04.5]} 14... Nb8 {[%clk 0:02:21.5]} 15. Qa4
{[%clk 0:01:46.5]} 15... Qc7 {[%clk 0:02:07.6]} 16. Nxf7 {[%clk 0:01:10.4]}
16... Bxh2+ {[%clk 0:01:42.5]} 17. Kh1 {[%clk 0:01:09.7]} 17... Qxc4 {[%clk
0:01:31]} 18. Qxc4 {[%clk 0:01:04.5]} 18... Rxc4 {[%clk 0:01:29.3]} 19. Nxh6+
{[%clk 0:01:04.6]} 19... gxh6 {[%clk 0:01:28.7]} 20. Kxh2 {[%clk 0:01:04.4]}
20... Rxd4 {[%clk 0:01:20.2]} 21. Nc3 {[%clk 0:01:00.2]} 21... Nd7 {[%clk
0:01:13.9]} 22. Bxh6 {[%clk 0:00:58.8]} 22... Rb8 {[%clk 0:01:12.2]} 23. Rf4
{[%clk 0:00:55.1]} 23... Be6 {[%clk 0:01:07.1]} 24. Raf1 {[%clk 0:00:52.4]}
24... Rdb4 {[%clk 0:00:51.4]} 25. Nd5 {[%clk 0:00:51.3]} 25... Bxd5 {[%clk
0:00:47.9]} 26. Rg4+ {[%clk 0:00:50.4]} 26... Kh8 {[%clk 0:00:45.4]} 27. Bg7+
{[%clk 0:00:49.9]} 27... Kg8 {[%clk 0:00:45.4]} 28. Be5# {[%clk 0:00:48.3]} 1-0

[Event "*** Titled Tuesday Blitz"]
[Site "Chess.com"]
[Date "2020.12.29"]
[Round "2"]
[White "Training_Day"]
[Black "Ariadna_Atreides"]
[Result "1-0"]
[WhiteElo "2379"]
[BlackElo "2080"]
[TimeControl "180+1"]
[EndTime "10:16:34 PST"]
[Termination "Training_Day won by resignation"]

1. e4 {[%clk 0:03:00.9]} 1... c5 {[%clk 0:02:59.3]} 2. Nf3 {[%clk 0:02:53.2]}
2... d6 {[%clk 0:02:57.9]} 3. d4 {[%clk 0:02:50.3]} 3... cxd4 {[%clk 0:02:57.5]}
4. Nxd4 {[%clk 0:02:51.2]} 4... Nf6 {[%clk 0:02:57.2]} 5. f3 {[%clk 0:02:51.6]}
5... Nc6 {[%clk 0:02:56.4]} 6. c4 {[%clk 0:02:50.4]} 6... e5 {[%clk 0:02:55.2]}
7. Nc2 {[%clk 0:02:47.2]} 7... Be7 {[%clk 0:02:54.4]} 8. Be3 {[%clk 0:02:45.8]}
8... Be6 {[%clk 0:02:52.5]} 9. Nc3 {[%clk 0:02:42.5]} 9... a5 {[%clk 0:02:51.6]}
10. Be2 {[%clk 0:02:40.1]} 10... O-O {[%clk 0:02:37.5]} 11. b3 {[%clk
0:02:32.6]} 11... Nh5 {[%clk 0:02:32]} 12. Qd2 {[%clk 0:02:26.4]} 12... Nf4
{[%clk 0:02:12.6]} 13. O-O {[%clk 0:02:07.8]} 13... Bg5 {[%clk 0:01:10.4]} 14.
Rfd1 {[%clk 0:02:06.1]} 14... Nxe2+ {[%clk 0:01:04.9]} 15. Qxe2 {[%clk
0:02:01.8]} 15... Bxe3+ {[%clk 0:01:03.4]} 16. Qxe3 {[%clk 0:02:02.3]} 16... Qe7
{[%clk 0:01:01.2]} 17. Nb5 {[%clk 0:01:43.8]} 17... Rfd8 {[%clk 0:00:58.6]} 18.
a4 {[%clk 0:01:43.5]} 18... f5 {[%clk 0:00:57.3]} 19. Rd2 {[%clk 0:01:33.3]}
19... fxe4 {[%clk 0:00:52]} 20. Qxe4 {[%clk 0:01:33.2]} 20... Rd7 {[%clk
0:00:46.6]} 21. Rad1 {[%clk 0:01:30]} 21... Rad8 {[%clk 0:00:45.5]} 22. Ne3
{[%clk 0:01:19.5]} 22... g6 {[%clk 0:00:36.4]} 23. Nd5 {[%clk 0:01:13.8]} 23...
Qg5 {[%clk 0:00:34.9]} 24. h4 {[%clk 0:00:58.7]} 24... Qh5 {[%clk 0:00:29.3]}
25. Nf6+ {[%clk 0:00:57.8]} 1-0

[Event "*** Titled Tuesday Blitz"]
[Site "Chess.com"]
[Date "2020.12.29"]
[Round "2"]
[White "exoticprincess"]
[Black "Fh2411"]
[Result "1-0"]
[WhiteElo "2899"]
[BlackElo "2568"]
[TimeControl "180+1"]
[EndTime "10:16:41 PST"]
[Termination "exoticprincess won by checkmate"]

1. d4 {[%clk 0:03:00.9]} 1... d5 {[%clk 0:02:59]} 2. Nc3 {[%clk 0:03:01.8]} 2...
Nf6 {[%clk 0:02:56.6]} 3. Bf4 {[%clk 0:03:02]} 3... Bf5 {[%clk 0:02:51.6]} 4. f3
{[%clk 0:02:58.5]} 4... e6 {[%clk 0:02:49.5]} 5. g4 {[%clk 0:02:57.4]} 5... Bg6
{[%clk 0:02:50]} 6. h4 {[%clk 0:02:57.9]} 6... h5 {[%clk 0:02:46.1]} 7. g5
{[%clk 0:02:57.7]} 7... Ng8 {[%clk 0:02:42.4]} 8. e3 {[%clk 0:02:58.6]} 8... Bb4
{[%clk 0:02:39.3]} 9. Kf2 {[%clk 0:02:50.9]} 9... Nd7 {[%clk 0:02:29.9]} 10. Nb5
{[%clk 0:02:48.7]} 10... Ba5 {[%clk 0:02:21.2]} 11. b4 {[%clk 0:02:34.3]} 11...
Bb6 {[%clk 0:02:19]} 12. a4 {[%clk 0:02:34.7]} 12... a6 {[%clk 0:02:11.2]} 13.
Nc3 {[%clk 0:02:27]} 13... c6 {[%clk 0:01:55.4]} 14. a5 {[%clk 0:02:25.3]} 14...
Bc7 {[%clk 0:01:54.3]} 15. Bxc7 {[%clk 0:02:23.9]} 15... Qxc7 {[%clk 0:01:55.2]}
16. f4 {[%clk 0:02:22.5]} 16... Ne7 {[%clk 0:01:41.9]} 17. Nf3 {[%clk 0:02:22]}
17... Nc8 {[%clk 0:01:14.7]} 18. Bd3 {[%clk 0:02:19.7]} 18... Bf5 {[%clk
0:01:09]} 19. Na4 {[%clk 0:02:16.6]} 19... Nd6 {[%clk 0:01:07.4]} 20. Nc5 {[%clk
0:02:16.8]} 20... Rd8 {[%clk 0:00:32.1]} 21. Ne5 {[%clk 0:02:04]} 21... Nxe5
{[%clk 0:00:28.2]} 22. fxe5 {[%clk 0:02:02.7]} 22... Ne4+ {[%clk 0:00:25.3]} 23.
Bxe4 {[%clk 0:02:02.8]} 23... dxe4 {[%clk 0:00:23.4]} 24. Rg1 {[%clk 0:01:57]}
24... Qe7 {[%clk 0:00:20.4]} 25. Ke1 {[%clk 0:01:47.7]} 25... f6 {[%clk
0:00:12.7]} 26. exf6 {[%clk 0:01:46.8]} 26... gxf6 {[%clk 0:00:13.6]} 27. Kd2
{[%clk 0:01:45.1]} 27... Kf7 {[%clk 0:00:10.9]} 28. gxf6 {[%clk 0:01:42.2]}
28... Qxf6 {[%clk 0:00:11]} 29. Rg5 {[%clk 0:01:41.6]} 29... Rxd4+ {[%clk
0:00:08.7]} 30. exd4 {[%clk 0:01:41.5]} 30... Qxd4+ {[%clk 0:00:09.6]} 31. Ke2
{[%clk 0:01:41.6]} 31... Qc4+ {[%clk 0:00:09.3]} 32. Kf2 {[%clk 0:01:38.9]}
32... e3+ {[%clk 0:00:07.6]} 33. Kxe3 {[%clk 0:01:34.5]} 33... Qxh4 {[%clk
0:00:06.6]} 34. Qd7+ {[%clk 0:01:33.5]} 34... Kf6 {[%clk 0:00:06.5]} 35. Qg7#
{[%clk 0:01:33.7]} 1-0

[Event "*** Titled Tuesday Blitz"]
[Site "Chess.com"]
[Date "2020.12.29"]
[Round "2"]
[White "MomchilPetkov"]
[Black "Galileo22"]
[Result "1-0"]
[WhiteElo "2738"]
[BlackElo "2343"]
[TimeControl "180+1"]
[EndTime "10:16:41 PST"]
[Termination "MomchilPetkov won on time"]

1. d4 {[%clk 0:03:00.9]} 1... Nf6 {[%clk 0:02:59.7]} 2. Bf4 {[%clk 0:02:58.1]}
2... g6 {[%clk 0:02:57.1]} 3. e3 {[%clk 0:02:58.6]} 3... Bg7 {[%clk 0:02:57.6]}
4. Nf3 {[%clk 0:02:59.2]} 4... O-O {[%clk 0:02:58]} 5. h3 {[%clk 0:02:59.8]}
5... c5 {[%clk 0:02:58.3]} 6. Be2 {[%clk 0:02:59.9]} 6... d6 {[%clk 0:02:55.5]}
7. O-O {[%clk 0:03:00]} 7... cxd4 {[%clk 0:02:53.3]} 8. exd4 {[%clk 0:02:59.9]}
8... Nc6 {[%clk 0:02:53]} 9. c3 {[%clk 0:03:00]} 9... b6 {[%clk 0:02:15.2]} 10.
Nbd2 {[%clk 0:02:59.2]} 10... Bb7 {[%clk 0:02:14.8]} 11. Re1 {[%clk 0:02:59.6]}
11... Nd5 {[%clk 0:01:58]} 12. Bh2 {[%clk 0:02:59.2]} 12... Nc7 {[%clk
0:01:47.1]} 13. Bf1 {[%clk 0:02:56.4]} 13... Re8 {[%clk 0:01:42.9]} 14. Nc4
{[%clk 0:02:56.3]} 14... b5 {[%clk 0:01:39.6]} 15. Ne3 {[%clk 0:02:55.1]} 15...
e5 {[%clk 0:01:32.6]} 16. dxe5 {[%clk 0:02:52.2]} 16... dxe5 {[%clk 0:01:33.5]}
17. Qc2 {[%clk 0:02:42.3]} 17... e4 {[%clk 0:01:13.2]} 18. Nd2 {[%clk
0:02:41.7]} 18... f5 {[%clk 0:01:12.1]} 19. Rad1 {[%clk 0:02:38.3]} 19... Qe7
{[%clk 0:00:58.4]} 20. Bxc7 {[%clk 0:02:32.3]} 20... Qxc7 {[%clk 0:00:57.7]} 21.
Bxb5 {[%clk 0:02:33.2]} 21... Ne5 {[%clk 0:00:56.5]} 22. Qb3+ {[%clk 0:02:17.6]}
22... Kh8 {[%clk 0:00:54.1]} 23. Bxe8 {[%clk 0:02:17.2]} 23... Rxe8 {[%clk
0:00:55]} 24. Nd5 {[%clk 0:02:05.6]} 24... Qf7 {[%clk 0:00:47.9]} 25. Nf1 {[%clk
0:02:01.3]} 25... Ba6 {[%clk 0:00:41.5]} 26. Nde3 {[%clk 0:01:53.3]} 26... Qe7
{[%clk 0:00:29.1]} 27. c4 {[%clk 0:01:46.8]} 27... Nd3 {[%clk 0:00:23.6]} 28.
Rxd3 {[%clk 0:01:42.8]} 28... exd3 {[%clk 0:00:23.1]} 29. Qxd3 {[%clk
0:01:43.5]} 29... Bxb2 {[%clk 0:00:18.1]} 30. Qb3 {[%clk 0:01:29.9]} 30... Bg7
{[%clk 0:00:13.1]} 31. Qa4 {[%clk 0:01:30.2]} 1-0

[Event "*** Titled Tuesday Blitz"]
[Site "Chess.com"]
[Date "2020.12.29"]
[Round "2"]
[White "MumLookatMeNow"]
[Black "Msb2"]
[Result "0-1"]
[WhiteElo "2515"]
[BlackElo "2776"]
[TimeControl "180+1"]
[EndTime "10:16:42 PST"]
[Termination "Msb2 won by resignation"]

1. e4 {[%clk 0:03:00.9]} 1... e6 {[%clk 0:03:00.2]} 2. d4 {[%clk 0:03:00.4]}
2... d5 {[%clk 0:03:00.5]} 3. Nc3 {[%clk 0:03:00.8]} 3... Nf6 {[%clk 0:03:00.8]}
4. e5 {[%clk 0:03:01.2]} 4... Nfd7 {[%clk 0:03:00]} 5. Nce2 {[%clk 0:03:01.4]}
5... c5 {[%clk 0:03:00.3]} 6. c3 {[%clk 0:03:01.7]} 6... Nc6 {[%clk 0:03:01]} 7.
Nf3 {[%clk 0:03:01.8]} 7... Be7 {[%clk 0:03:01.6]} 8. a3 {[%clk 0:03:01.7]} 8...
O-O {[%clk 0:03:01.6]} 9. Nf4 {[%clk 0:03:00.9]} 9... Qa5 {[%clk 0:03:01.9]} 10.
Bd3 {[%clk 0:02:23.8]} 10... Nxd4 {[%clk 0:02:50.1]} 11. Nxd4 {[%clk 0:02:18.3]}
11... cxd4 {[%clk 0:02:51]} 12. b4 {[%clk 0:02:18]} 12... Qc7 {[%clk 0:02:47.1]}
13. cxd4 {[%clk 0:02:03.7]} 13... Qc3+ {[%clk 0:02:43.2]} 14. Bd2 {[%clk
0:02:03.2]} 14... Qxd4 {[%clk 0:02:41.4]} 15. O-O {[%clk 0:02:02.5]} 15... Qxe5
{[%clk 0:02:37.4]} 16. Re1 {[%clk 0:02:01.3]} 16... Qd6 {[%clk 0:02:36.4]} 17.
Rc1 {[%clk 0:01:52.4]} 17... e5 {[%clk 0:02:26.7]} 18. Nh5 {[%clk 0:01:17.9]}
18... Nf6 {[%clk 0:02:26]} 19. Nxf6+ {[%clk 0:01:07]} 19... Bxf6 {[%clk
0:02:25.1]} 20. b5 {[%clk 0:01:07.3]} 20... Re8 {[%clk 0:02:21.7]} 21. Bb4
{[%clk 0:01:05.5]} 21... Qd8 {[%clk 0:02:20.7]} 22. a4 {[%clk 0:00:42.8]} 22...
Be6 {[%clk 0:02:17.3]} 23. Be2 {[%clk 0:00:42.9]} 23... Rc8 {[%clk 0:02:15.5]}
24. Qd3 {[%clk 0:00:42.4]} 24... Qd7 {[%clk 0:02:10.2]} 25. Qg3 {[%clk
0:00:38.7]} 25... Rxc1 {[%clk 0:02:07.5]} 26. Rxc1 {[%clk 0:00:38]} 26... Rc8
{[%clk 0:02:08.1]} 27. Rd1 {[%clk 0:00:38.4]} 27... d4 {[%clk 0:02:04.7]} 28.
Bd3 {[%clk 0:00:33.6]} 28... Bf5 {[%clk 0:02:02.1]} 29. Qf3 {[%clk 0:00:33.4]}
29... Bxd3 {[%clk 0:02:01.5]} 30. Qxd3 {[%clk 0:00:34.3]} 30... Qd5 {[%clk
0:02:00.4]} 31. f3 {[%clk 0:00:32.5]} 31... Rc4 {[%clk 0:01:59.9]} 32. Qb3
{[%clk 0:00:28.4]} 32... Qe6 {[%clk 0:01:51.7]} 33. Be1 {[%clk 0:00:20.5]} 33...
g6 {[%clk 0:01:44.3]} 34. a5 {[%clk 0:00:20.2]} 34... Kg7 {[%clk 0:01:37.7]} 35.
b6 {[%clk 0:00:20]} 35... axb6 {[%clk 0:01:37.6]} 36. axb6 {[%clk 0:00:19.7]}
36... Rc6 {[%clk 0:01:37.6]} 37. Qd3 {[%clk 0:00:18.8]} 37... Rxb6 {[%clk
0:01:37]} 38. Qe4 {[%clk 0:00:19.1]} 38... Qc6 {[%clk 0:01:36.4]} 39. Qg4 {[%clk
0:00:18.7]} 39... h5 {[%clk 0:01:35.4]} 0-1

[Event "*** Titled Tuesday Blitz"]
[Site "Chess.com"]
[Date "2020.12.29"]
[Round "2"]
[White "SergeyShtyka"]
[Black "PakMaster"]
[Result "1-0"]
[WhiteElo "2458"]
[BlackElo "2262"]
[TimeControl "180+1"]
[EndTime "10:16:42 PST"]
[Termination "SergeyShtyka won by checkmate"]

1. e4 {[%clk 0:02:58.4]} 1... c5 {[%clk 0:02:59.4]} 2. Nf3 {[%clk 0:02:58.7]}
2... d6 {[%clk 0:02:59.6]} 3. d4 {[%clk 0:02:58.4]} 3... cxd4 {[%clk 0:03:00.5]}
4. Nxd4 {[%clk 0:02:59]} 4... Nf6 {[%clk 0:03:01]} 5. Nc3 {[%clk 0:02:58.8]}
5... a6 {[%clk 0:03:01.5]} 6. Bc4 {[%clk 0:02:57.2]} 6... e6 {[%clk 0:03:01.2]}
7. O-O {[%clk 0:02:57.1]} 7... Be7 {[%clk 0:03:01.7]} 8. Be3 {[%clk 0:02:57]}
8... O-O {[%clk 0:03:01.6]} 9. f4 {[%clk 0:02:56.7]} 9... Nc6 {[%clk 0:02:58.7]}
10. Qf3 {[%clk 0:02:54.6]} 10... Bd7 {[%clk 0:02:52.5]} 11. Bd3 {[%clk
0:02:53.1]} 11... Nxd4 {[%clk 0:02:50.7]} 12. Bxd4 {[%clk 0:02:53.2]} 12... Bc6
{[%clk 0:02:51.6]} 13. Qh3 {[%clk 0:02:52.1]} 13... h6 {[%clk 0:01:59.1]} 14.
Rae1 {[%clk 0:02:44.1]} 14... Qa5 {[%clk 0:01:25.7]} 15. e5 {[%clk 0:02:25.8]}
15... dxe5 {[%clk 0:01:21.1]} 16. fxe5 {[%clk 0:02:24.6]} 16... Qb4 {[%clk
0:00:35.4]} 17. Be3 {[%clk 0:01:47.9]} 17... Ng4 {[%clk 0:00:34.2]} 18. Rf4
{[%clk 0:01:12]} 18... Qxb2 {[%clk 0:00:12.2]} 19. Rxg4 {[%clk 0:01:10.3]} 19...
Qxc3 {[%clk 0:00:12.1]} 20. Rxg7+ {[%clk 0:01:09]} 20... Kxg7 {[%clk 0:00:05.3]}
21. Qxh6+ {[%clk 0:01:07.9]} 21... Kg8 {[%clk 0:00:06.2]} 22. Qh7# {[%clk
0:01:06.6]} 1-0

[Event "*** Titled Tuesday Blitz"]
[Site "Chess.com"]
[Date "2020.12.29"]
[Round "2"]
[White "1g41-0"]
[Black "rachidhuilda"]
[Result "1-0"]
[WhiteElo "2620"]
[BlackElo "2232"]
[TimeControl "180+1"]
[EndTime "10:16:43 PST"]
[Termination "1g41-0 won by resignation"]

1. d4 {[%clk 0:03:00.9]} 1... Nf6 {[%clk 0:02:59.4]} 2. c4 {[%clk 0:03:01.1]}
2... c5 {[%clk 0:02:59.5]} 3. d5 {[%clk 0:03:01.5]} 3... b5 {[%clk 0:02:59.7]}
4. cxb5 {[%clk 0:03:00.3]} 4... a6 {[%clk 0:02:59.8]} 5. e3 {[%clk 0:03:00.6]}
5... e6 {[%clk 0:02:56.5]} 6. Nc3 {[%clk 0:02:54.4]} 6... exd5 {[%clk
0:02:54.1]} 7. Nxd5 {[%clk 0:02:50.8]} 7... Bb7 {[%clk 0:02:54.4]} 8. Nxf6+
{[%clk 0:02:49.3]} 8... Qxf6 {[%clk 0:02:54]} 9. Nf3 {[%clk 0:02:48.4]} 9... d5
{[%clk 0:02:41.6]} 10. bxa6 {[%clk 0:02:28.4]} 10... Nxa6 {[%clk 0:02:41.4]} 11.
Bb5+ {[%clk 0:02:27.5]} 11... Bc6 {[%clk 0:02:31.3]} 12. Qxd5 {[%clk 0:02:23.1]}
12... Nb4 {[%clk 0:01:55.3]} 13. Bxc6+ {[%clk 0:02:16.1]} 13... Nxc6 {[%clk
0:01:55]} 14. O-O {[%clk 0:02:10.9]} 14... Rd8 {[%clk 0:01:47.5]} 15. Qe4+
{[%clk 0:01:55.4]} 15... Be7 {[%clk 0:01:47]} 16. Bd2 {[%clk 0:01:54.4]} 16...
O-O {[%clk 0:01:37.5]} 17. Bc3 {[%clk 0:01:53.6]} 17... Qg6 {[%clk 0:01:35.5]}
18. Qxg6 {[%clk 0:01:49.5]} 18... hxg6 {[%clk 0:01:35.7]} 19. Rfd1 {[%clk
0:01:50.1]} 19... Nb4 {[%clk 0:01:32.7]} 20. a3 {[%clk 0:01:46.4]} 20... Nd3
{[%clk 0:01:30.7]} 21. Kf1 {[%clk 0:01:44.8]} 21... c4 {[%clk 0:01:29.9]} 22.
Ne1 {[%clk 0:01:44.7]} 22... Bf6 {[%clk 0:01:23.5]} 23. Nxd3 {[%clk 0:01:39.5]}
23... Bxc3 {[%clk 0:01:08.6]} 24. bxc3 {[%clk 0:01:39.1]} 24... cxd3 {[%clk
0:01:08.2]} 25. Ke1 {[%clk 0:01:39.6]} 25... Rd5 {[%clk 0:01:04.3]} 26. Kd2
{[%clk 0:01:38.7]} 26... Ra8 {[%clk 0:00:58]} 27. Rdb1 {[%clk 0:01:36.2]} 27...
Ra4 {[%clk 0:00:49.7]} 28. Rb4 {[%clk 0:01:35.8]} 28... Ra8 {[%clk 0:00:44.4]}
29. a4 {[%clk 0:01:35.3]} 29... Rc5 {[%clk 0:00:36.5]} 30. Kxd3 {[%clk
0:01:32.4]} 30... Rd8+ {[%clk 0:00:36.6]} 31. Rd4 {[%clk 0:01:32.5]} 31... Rdc8
{[%clk 0:00:35.4]} 32. c4 {[%clk 0:01:27.9]} 32... Rb8 {[%clk 0:00:34.6]} 33.
Kc3 {[%clk 0:01:28.2]} 33... Ra5 {[%clk 0:00:30.7]} 34. Rd5 {[%clk 0:01:27.3]}
34... Ra7 {[%clk 0:00:29.4]} 35. Rb5 {[%clk 0:01:27.1]} 35... Rc8 {[%clk
0:00:29]} 36. a5 {[%clk 0:01:26.4]} 36... Rac7 {[%clk 0:00:28.6]} 37. Ra4 {[%clk
0:01:27.1]} 37... Kf8 {[%clk 0:00:26.9]} 38. a6 {[%clk 0:01:27.5]} 38... Ra8
{[%clk 0:00:26.8]} 39. Rb7 {[%clk 0:01:23.7]} 39... Rc6 {[%clk 0:00:23.1]} 40.
a7 {[%clk 0:01:23.5]} 1-0

[Event "*** Titled Tuesday Blitz"]
[Site "Chess.com"]
[Date "2020.12.29"]
[Round "2"]
[White "renehp"]
[Black "paulrusan"]
[Result "1-0"]
[WhiteElo "2442"]
[BlackElo "2225"]
[TimeControl "180+1"]
[EndTime "10:16:46 PST"]
[Termination "renehp won by resignation"]

1. e4 {[%clk 0:03:00]} 1... g6 {[%clk 0:02:59.7]} 2. d4 {[%clk 0:02:59.7]} 2...
Bg7 {[%clk 0:02:59.6]} 3. Nc3 {[%clk 0:03:00.3]} 3... d6 {[%clk 0:02:59.8]} 4.
Be3 {[%clk 0:03:00.1]} 4... a6 {[%clk 0:02:59.2]} 5. f4 {[%clk 0:03:00]} 5... b5
{[%clk 0:02:59]} 6. Bd3 {[%clk 0:03:00.3]} 6... Bb7 {[%clk 0:02:59.1]} 7. Nf3
{[%clk 0:03:00.2]} 7... Nd7 {[%clk 0:02:59.3]} 8. e5 {[%clk 0:02:56.8]} 8... c5
{[%clk 0:02:59.3]} 9. Be4 {[%clk 0:02:55]} 9... Qb8 {[%clk 0:02:58.7]} 10. Bxb7
{[%clk 0:02:42.1]} 10... Qxb7 {[%clk 0:02:58]} 11. Qe2 {[%clk 0:02:41.7]} 11...
b4 {[%clk 0:02:57.1]} 12. Nd1 {[%clk 0:02:39.7]} 12... cxd4 {[%clk 0:02:56.3]}
13. Bxd4 {[%clk 0:02:38.8]} 13... dxe5 {[%clk 0:02:53.3]} 14. fxe5 {[%clk
0:02:37]} 14... e6 {[%clk 0:02:47.9]} 15. O-O {[%clk 0:02:33.2]} 15... Ne7
{[%clk 0:02:46.9]} 16. Ne3 {[%clk 0:02:24.6]} 16... O-O {[%clk 0:02:39.1]} 17.
Rad1 {[%clk 0:02:23.4]} 17... Nc6 {[%clk 0:02:38.2]} 18. Ng4 {[%clk 0:02:18.7]}
18... Nxd4 {[%clk 0:02:27.5]} 19. Nxd4 {[%clk 0:02:18.1]} 19... h5 {[%clk
0:02:28.1]} 20. Nf6+ {[%clk 0:02:17.3]} 20... Nxf6 {[%clk 0:02:22.2]} 21. exf6
{[%clk 0:02:18.2]} 21... Bh6 {[%clk 0:02:22.7]} 22. Kh1 {[%clk 0:02:11.9]} 22...
Rfd8 {[%clk 0:02:20.6]} 23. h3 {[%clk 0:01:47.3]} 23... Rac8 {[%clk 0:02:12.9]}
24. Rd3 {[%clk 0:01:44.8]} 24... Kh7 {[%clk 0:01:57.8]} 25. Rfd1 {[%clk
0:01:41.9]} 25... Rd5 {[%clk 0:01:55.1]} 26. Nxe6 {[%clk 0:01:27.8]} 26... Rxd3
{[%clk 0:01:52]} 27. Rxd3 {[%clk 0:01:25.9]} 27... fxe6 {[%clk 0:01:48.2]} 28.
Qxe6 {[%clk 0:01:26.8]} 28... Rc7 {[%clk 0:01:43.9]} 29. Rd8 {[%clk 0:01:26.1]}
29... Bf4 {[%clk 0:01:25.5]} 30. h4 {[%clk 0:01:02.4]} 30... Rxc2 {[%clk
0:00:59.3]} 31. Qg8+ {[%clk 0:00:53]} 31... Kh6 {[%clk 0:00:58.4]} 32. Qh8+
{[%clk 0:00:53.2]} 32... Qh7 {[%clk 0:00:57.3]} 33. Qf8+ {[%clk 0:00:53.3]} 1-0

[Event "*** Titled Tuesday Blitz"]
[Site "Chess.com"]
[Date "2020.12.29"]
[Round "2"]
[White "NovikovaGalina"]
[Black "ambaixador"]
[Result "1-0"]
[WhiteElo "2233"]
[BlackElo "2423"]
[TimeControl "180+1"]
[EndTime "10:16:48 PST"]
[Termination "NovikovaGalina won by resignation"]

1. e4 {[%clk 0:03:00]} 1... c5 {[%clk 0:02:59.4]} 2. Nf3 {[%clk 0:02:59.9]} 2...
d6 {[%clk 0:02:59.1]} 3. d4 {[%clk 0:03:00.3]} 3... cxd4 {[%clk 0:03:00]} 4.
Nxd4 {[%clk 0:03:01.2]} 4... Nf6 {[%clk 0:03:00.4]} 5. Nc3 {[%clk 0:03:01.4]}
5... a6 {[%clk 0:03:00.5]} 6. h3 {[%clk 0:03:00.8]} 6... e5 {[%clk 0:02:52.1]}
7. Nde2 {[%clk 0:03:00.4]} 7... Be6 {[%clk 0:02:45.2]} 8. g4 {[%clk 0:03:00.3]}
8... Be7 {[%clk 0:02:41.4]} 9. Bg2 {[%clk 0:03:00.6]} 9... O-O {[%clk
0:02:38.3]} 10. Ng3 {[%clk 0:03:01.1]} 10... Nc6 {[%clk 0:02:26.4]} 11. Be3
{[%clk 0:03:00.9]} 11... Qc7 {[%clk 0:02:20.1]} 12. g5 {[%clk 0:03:00.7]} 12...
Nd7 {[%clk 0:02:19.1]} 13. h4 {[%clk 0:03:00.9]} 13... Nb6 {[%clk 0:02:10.7]}
14. Nd5 {[%clk 0:03:00.2]} 14... Bxd5 {[%clk 0:02:03.1]} 15. exd5 {[%clk
0:03:01.1]} 15... Nb8 {[%clk 0:01:56.9]} 16. O-O {[%clk 0:02:36.1]} 16... Nc4
{[%clk 0:01:54.8]} 17. Bc1 {[%clk 0:02:35.8]} 17... f5 {[%clk 0:01:46.6]} 18.
gxf6 {[%clk 0:02:30.9]} 18... Bxf6 {[%clk 0:01:43.8]} 19. b3 {[%clk 0:02:31.1]}
19... Nb6 {[%clk 0:01:39.8]} 20. Bg5 {[%clk 0:02:31.4]} 20... N8d7 {[%clk
0:01:33.9]} 21. c4 {[%clk 0:02:29.7]} 21... a5 {[%clk 0:01:25]} 22. Qg4 {[%clk
0:02:21.8]} 22... a4 {[%clk 0:01:24.2]} 23. Ne4 {[%clk 0:01:45.5]} 23... Bxg5
{[%clk 0:01:19.5]} 24. Nxg5 {[%clk 0:01:44.8]} 24... Rf4 {[%clk 0:01:17.9]} 25.
Qe6+ {[%clk 0:01:41.4]} 25... Kh8 {[%clk 0:01:16.2]} 26. Nf7+ {[%clk 0:01:40.5]}
26... Rxf7 {[%clk 0:01:15.9]} 27. Qxf7 {[%clk 0:01:41.4]} 27... Rf8 {[%clk
0:01:14.5]} 28. Qe7 {[%clk 0:01:30.2]} 28... Nc8 {[%clk 0:01:14.1]} 29. Qe6
{[%clk 0:01:26.8]} 29... Nc5 {[%clk 0:01:11.7]} 30. Qg4 {[%clk 0:01:22.4]} 30...
Rf4 {[%clk 0:01:11.1]} 31. Qg3 {[%clk 0:01:21.9]} 31... Ne7 {[%clk 0:00:59.1]}
32. Rfe1 {[%clk 0:00:55.4]} 32... Nf5 {[%clk 0:00:58.5]} 33. Qxf4 {[%clk
0:00:52]} 1-0